[Event "Late Titled Tuesday Blitz February 8 2022"]
[White "Ambartsumova, Karina"]
[Black "Okike, David"]
[WhiteFideId "4166299"]
[BlackFideId "8500134"]
[WhiteElo "2262"]
[BlackElo "2232"]
[Result "1-0"]
[Round "04"]
[TimeControl "180+1"]
[Date "2022.02.09"]
[WhiteClock "0:00:14"]
[BlackClock "0:00:30"]

1. c4 {[%clk 0:03:00]}  e5 {[%clk 0:02:59]} 2. Nc3 {[%clk 0:03:00]}  Bb4 {[%clk 0:02:57]} 3. Qc2 {[%clk 0:02:59]}  c6 {[%clk 0:02:56]} 4. Nf3 {[%clk 0:02:56]}  d6 {[%clk 0:02:55]} 5. a3 {[%clk 0:02:54]}  Ba5 {[%clk 0:02:54]} 6. b4 {[%clk 0:02:52]}  Bc7 {[%clk 0:02:54]} 7. d3 {[%clk 0:02:51]}  Nf6 {[%clk 0:02:53]} 8. g3 {[%clk 0:02:52]}  O-O {[%clk 0:02:53]} 9. Bg2 {[%clk 0:02:52]}  Re8 {[%clk 0:02:53]} 10. O-O {[%clk 0:02:52]}  Nbd7 {[%clk 0:02:52]} 11. Bb2 {[%clk 0:02:52]}  Nf8 {[%clk 0:02:51]} 12. Nd2 {[%clk 0:02:45]}  Bg4 {[%clk 0:02:49]} 13. Rfe1 {[%clk 0:02:42]}  Qd7 {[%clk 0:02:48]} 14. Nde4 {[%clk 0:02:40]}  Nxe4 {[%clk 0:02:48]} 15. Nxe4 {[%clk 0:02:41]}  h6 {[%clk 0:02:44]} 16. a4 {[%clk 0:02:34]}  Bh3 {[%clk 0:02:42]} 17. Bh1 {[%clk 0:02:33]}  Ne6 {[%clk 0:02:37]} 18. b5 {[%clk 0:02:32]}  d5 {[%clk 0:02:24]} 19. Nd2 {[%clk 0:02:16]}  f5 {[%clk 0:02:10]} 20. Rac1 {[%clk 0:02:06]}  Rac8 {[%clk 0:02:09]} 21. cxd5 {[%clk 0:02:03]}  cxd5 {[%clk 0:02:09]} 22. Qb3 {[%clk 0:02:03]}  Red8 {[%clk 0:02:06]} 23. Nf3 {[%clk 0:01:55]}  e4 {[%clk 0:01:41]} 24. Ne5 {[%clk 0:01:52]}  Qe8 {[%clk 0:01:41]} 25. Red1 {[%clk 0:01:35]}  Nf8 {[%clk 0:01:32]} 26. Rxc7 {[%clk 0:01:22]}  Rxc7 {[%clk 0:01:30]} 27. dxe4 {[%clk 0:01:22]}  fxe4 {[%clk 0:01:24]} 28. Bxe4 {[%clk 0:01:22]}  Kh8 {[%clk 0:01:24]} 29. Bxd5 {[%clk 0:01:09]}  Be6 {[%clk 0:01:24]} 30. e4 {[%clk 0:01:09]}  Bxd5 {[%clk 0:01:18]} 31. exd5 {[%clk 0:01:09]}  Ng6 {[%clk 0:01:17]} 32. d6 {[%clk 0:01:02]}  Rcd7 {[%clk 0:00:59]} 33. Nxd7 {[%clk 0:01:00]}  Rxd7 {[%clk 0:00:58]} 34. Qd3 {[%clk 0:00:53]}  Qf7 {[%clk 0:00:53]} 35. Qd4 {[%clk 0:00:40]}  Kh7 {[%clk 0:00:50]} 36. h4 {[%clk 0:00:40]}  b6 {[%clk 0:00:49]} 37. Qe4 {[%clk 0:00:33]}  Kg8 {[%clk 0:00:46]} 38. Qc6 {[%clk 0:00:28]}  Ne5 {[%clk 0:00:45]} 39. Bxe5 {[%clk 0:00:27]}  Qe6 {[%clk 0:00:43]} 40. Qe4 {[%clk 0:00:23]}  Kf7 {[%clk 0:00:39]} 41. Qf3+ {[%clk 0:00:20]}  Kg8 {[%clk 0:00:39]} 42. Qd5 {[%clk 0:00:20]}  Kf7 {[%clk 0:00:38]} 43. f4 {[%clk 0:00:20]}  g5 {[%clk 0:00:38]} 44. hxg5 {[%clk 0:00:20]}  hxg5 {[%clk 0:00:38]} 45. f5 {[%clk 0:00:20]}  Qxd5 {[%clk 0:00:38]} 46. Rxd5 {[%clk 0:00:21]}  Rd8 {[%clk 0:00:34]} 47. d7 {[%clk 0:00:15]}  Ke7 {[%clk 0:00:33]} 48. f6+ {[%clk 0:00:15]}  Ke6 {[%clk 0:00:33]} 49. Rd1 {[%clk 0:00:15]}  g4 {[%clk 0:00:30]} 50. Bc7 {[%clk 0:00:14]}  Rxd7 {[%clk 0:00:29]} 51. Rxd7 {[%clk 0:00:14]}  Kxd7 {[%clk 0:00:30]} 52. Be5 {[%clk 0:00:13]}  Ke6 {[%clk 0:00:30]} 53. Bb2 {[%clk 0:00:13]}  Kf7 {[%clk 0:00:30]} 54. Kf2 {[%clk 0:00:14]} 1-0


[Site "https://www.chess.com"]

[Event "Late Titled Tuesday Blitz February 8 2022"]
[White "Ardila, Oscar Humberto"]
[Black "Kouskoutis, Georgios-Alexandros"]
[WhiteFideId "4404742"]
[BlackFideId "4234049"]
[WhiteElo "1898"]
[BlackElo "2130"]
[Result "0-1"]
[Round "04"]
[TimeControl "180+1"]
[Date "2022.02.09"]
[WhiteClock "0:00:12"]
[BlackClock "0:00:06"]

1. d4 {[%clk 0:02:53]}  Nf6 {[%clk 0:02:59]} 2. c4 {[%clk 0:02:53]}  e6 {[%clk 0:02:57]} 3. Nc3 {[%clk 0:02:53]}  Bb4 {[%clk 0:02:57]} 4. Bd2 {[%clk 0:02:53]}  O-O {[%clk 0:02:52]} 5. Nf3 {[%clk 0:02:52]}  b6 {[%clk 0:02:49]} 6. e3 {[%clk 0:02:52]}  Bb7 {[%clk 0:02:46]} 7. Be2 {[%clk 0:02:52]}  d6 {[%clk 0:02:41]} 8. O-O {[%clk 0:02:52]}  Nbd7 {[%clk 0:02:39]} 9. Rc1 {[%clk 0:02:51]}  Bxc3 {[%clk 0:02:35]} 10. Bxc3 {[%clk 0:02:51]}  Ne4 {[%clk 0:02:35]} 11. Be1 {[%clk 0:02:52]}  f5 {[%clk 0:02:35]} 12. Nd2 {[%clk 0:02:52]}  Qg5 {[%clk 0:02:20]} 13. Nxe4 {[%clk 0:02:50]}  fxe4 {[%clk 0:02:21]} 14. Bg4 {[%clk 0:02:20]}  Rf6 {[%clk 0:02:08]} 15. d5 {[%clk 0:01:59]}  Nf8 {[%clk 0:01:56]} 16. dxe6 {[%clk 0:01:55]}  Nxe6 {[%clk 0:01:53]} 17. Bc3 {[%clk 0:01:54]}  Rg6 {[%clk 0:01:46]} 18. Bh3 {[%clk 0:01:48]}  Nc5 {[%clk 0:01:29]} 19. Rc2 {[%clk 0:01:17]}  Rf8 {[%clk 0:01:26]} 20. Kh1 {[%clk 0:00:50]}  Nd3 {[%clk 0:01:02]} 21. Rd2 {[%clk 0:00:41]}  Qh4 {[%clk 0:00:56]} 22. b4 {[%clk 0:00:16]}  Nxf2+ {[%clk 0:00:44]} 23. Rdxf2 {[%clk 0:00:16]}  Rxf2 {[%clk 0:00:44]} 24. c5 {[%clk 0:00:14]}  h6 {[%clk 0:00:20]} 25. cxd6 {[%clk 0:00:13]}  Rxd6 {[%clk 0:00:19]} 26. Qe1 {[%clk 0:00:12]}  Rxf1+ {[%clk 0:00:18]} 27. Qxf1 {[%clk 0:00:13]}  Qh5 {[%clk 0:00:13]} 28. Bd4 {[%clk 0:00:13]}  c5 {[%clk 0:00:08]} 29. bxc5 {[%clk 0:00:13]}  bxc5 {[%clk 0:00:09]} 30. Qc4+ {[%clk 0:00:13]}  Bd5 {[%clk 0:00:06]} 31. Qxc5 {[%clk 0:00:12]}  Qd1# {[%clk 0:00:06]} 0-1


[Site "https://www.chess.com"]

[Event "Late Titled Tuesday Blitz February 8 2022"]
[White "Baches Garcia, Guillermo"]
[Black "volunteers1998"]
[WhiteFideId "2209764"]
[WhiteElo "2446"]
[BlackElo "2229"]
[Result "1-0"]
[Round "04"]
[TimeControl "180+1"]
[Date "2022.02.09"]
[WhiteClock "0:00:30"]
[BlackClock "0:00:01"]

1. e4 {[%clk 0:03:00]}  c5 {[%clk 0:03:00]} 2. Nf3 {[%clk 0:03:01]}  Nc6 {[%clk 0:02:58]} 3. d4 {[%clk 0:03:01]}  cxd4 {[%clk 0:02:58]} 4. Nxd4 {[%clk 0:03:01]}  Nf6 {[%clk 0:02:58]} 5. Nc3 {[%clk 0:03:01]}  e5 {[%clk 0:02:59]} 6. Ndb5 {[%clk 0:03:01]}  d6 {[%clk 0:02:59]} 7. Bg5 {[%clk 0:03:01]}  a6 {[%clk 0:02:59]} 8. Na3 {[%clk 0:03:01]}  b5 {[%clk 0:03:00]} 9. Nd5 {[%clk 0:03:01]}  Be7 {[%clk 0:03:00]} 10. Bxf6 {[%clk 0:03:01]}  Bxf6 {[%clk 0:03:01]} 11. c4 {[%clk 0:03:02]}  b4 {[%clk 0:02:58]} 12. Nc2 {[%clk 0:03:02]}  a5 {[%clk 0:02:58]} 13. g3 {[%clk 0:03:02]}  O-O {[%clk 0:02:39]} 14. h4 {[%clk 0:03:01]}  Be6 {[%clk 0:02:36]} 15. Bh3 {[%clk 0:03:00]}  Rc8 {[%clk 0:02:26]} 16. Kf1 {[%clk 0:02:52]}  g6 {[%clk 0:02:21]} 17. Kg2 {[%clk 0:02:42]}  Bg7 {[%clk 0:02:18]} 18. h5 {[%clk 0:02:34]}  f5 {[%clk 0:02:15]} 19. hxg6 {[%clk 0:02:34]}  hxg6 {[%clk 0:02:13]} 20. exf5 {[%clk 0:02:27]}  gxf5 {[%clk 0:02:11]} 21. Qh5 {[%clk 0:02:22]}  Qe8 {[%clk 0:02:01]} 22. Qxe8 {[%clk 0:02:09]}  Rcxe8 {[%clk 0:01:53]} 23. Rad1 {[%clk 0:02:09]}  Kf7 {[%clk 0:01:41]} 24. b3 {[%clk 0:01:59]}  Bxd5+ {[%clk 0:01:29]} 25. Rxd5 {[%clk 0:01:55]}  Ke6 {[%clk 0:01:19]} 26. Rhd1 {[%clk 0:01:52]}  Rd8 {[%clk 0:01:16]} 27. Ne3 {[%clk 0:01:40]}  Nd4 {[%clk 0:01:11]} 28. Rxa5 {[%clk 0:01:34]}  Rf7 {[%clk 0:01:03]} 29. Ra6 {[%clk 0:01:28]}  Bh6 {[%clk 0:00:53]} 30. c5 {[%clk 0:01:22]}  Bxe3 {[%clk 0:00:50]} 31. fxe3 {[%clk 0:01:22]}  Nb5 {[%clk 0:00:48]} 32. e4 {[%clk 0:01:12]}  Nd4 {[%clk 0:00:46]} 33. Bxf5+ {[%clk 0:01:06]}  Nxf5 {[%clk 0:00:43]} 34. exf5+ {[%clk 0:01:07]}  Rxf5 {[%clk 0:00:41]} 35. Rdxd6+ {[%clk 0:01:02]}  Rxd6 {[%clk 0:00:40]} 36. Rxd6+ {[%clk 0:01:03]}  Ke7 {[%clk 0:00:37]} 37. Rb6 {[%clk 0:01:00]}  e4 {[%clk 0:00:34]} 38. Rxb4 {[%clk 0:01:00]}  Rxc5 {[%clk 0:00:32]} 39. Rxe4+ {[%clk 0:00:59]}  Kd6 {[%clk 0:00:30]} 40. Re2 {[%clk 0:00:58]}  Rg5 {[%clk 0:00:25]} 41. Kh3 {[%clk 0:00:58]}  Rh5+ {[%clk 0:00:24]} 42. Kg4 {[%clk 0:00:56]}  Rh8 {[%clk 0:00:24]} 43. Kf4 {[%clk 0:00:54]}  Rf8+ {[%clk 0:00:20]} 44. Ke3 {[%clk 0:00:53]}  Re8+ {[%clk 0:00:18]} 45. Kd3 {[%clk 0:00:50]}  Rg8 {[%clk 0:00:16]} 46. Re3 {[%clk 0:00:48]}  Kc5 {[%clk 0:00:14]} 47. Kc3 {[%clk 0:00:48]}  Kb5 {[%clk 0:00:11]} 48. a4+ {[%clk 0:00:47]}  Kc5 {[%clk 0:00:11]} 49. b4+ {[%clk 0:00:47]}  Kb6 {[%clk 0:00:10]} 50. Kb3 {[%clk 0:00:44]}  Kc6 {[%clk 0:00:09]} 51. a5 {[%clk 0:00:39]}  Kb5 {[%clk 0:00:09]} 52. Re5+ {[%clk 0:00:36]}  Kc6 {[%clk 0:00:09]} 53. Re6+ {[%clk 0:00:36]}  Kd5 {[%clk 0:00:09]} 54. Rb6 {[%clk 0:00:32]}  Rxg3+ {[%clk 0:00:08]} 55. Ka4 {[%clk 0:00:33]}  Kc4 {[%clk 0:00:08]} 56. Rc6+ {[%clk 0:00:31]}  Kd5 {[%clk 0:00:08]} 57. Rc1 {[%clk 0:00:31]}  Rg2 {[%clk 0:00:07]} 58. Kb5 {[%clk 0:00:31]}  Rg8 {[%clk 0:00:01]} 59. Rd1+ {[%clk 0:00:30]} 1-0


[Site "https://www.chess.com"]

[Event "Late Titled Tuesday Blitz February 8 2022"]
[White "Balint, Vilmos"]
[Black "Risteski, Emil"]
[WhiteFideId "718050"]
[BlackFideId "15005267"]
[WhiteElo "2059"]
[BlackElo "2070"]
[Result "1-0"]
[Round "04"]
[TimeControl "180+1"]
[Date "2022.02.09"]
[WhiteClock "0:00:53"]
[BlackClock "0:00:03"]

1. d4 {[%clk 0:02:55]}  d6 {[%clk 0:03:00]} 2. e4 {[%clk 0:02:53]}  Nf6 {[%clk 0:03:00]} 3. f3 {[%clk 0:02:53]}  e5 {[%clk 0:03:00]} 4. Ne2 {[%clk 0:02:50]}  Be7 {[%clk 0:03:00]} 5. Nbc3 {[%clk 0:02:50]}  c6 {[%clk 0:02:59]} 6. Be3 {[%clk 0:02:50]}  b5 {[%clk 0:02:57]} 7. Qd2 {[%clk 0:02:51]}  b4 {[%clk 0:02:56]} 8. Nd1 {[%clk 0:02:51]}  exd4 {[%clk 0:02:55]} 9. Nxd4 {[%clk 0:02:50]}  c5 {[%clk 0:02:55]} 10. Nf5 {[%clk 0:02:49]}  Bxf5 {[%clk 0:02:55]} 11. exf5 {[%clk 0:02:49]}  O-O {[%clk 0:02:40]} 12. Bd3 {[%clk 0:02:47]}  d5 {[%clk 0:02:40]} 13. b3 {[%clk 0:02:45]}  d4 {[%clk 0:02:36]} 14. Bf2 {[%clk 0:02:34]}  Nc6 {[%clk 0:02:23]} 15. O-O {[%clk 0:02:34]}  Nd5 {[%clk 0:02:16]} 16. Be4 {[%clk 0:02:34]}  Bg5 {[%clk 0:02:14]} 17. Qd3 {[%clk 0:02:28]}  Ne5 {[%clk 0:02:01]} 18. Qb5 {[%clk 0:02:25]}  Qd6 {[%clk 0:01:55]} 19. Bxd4 {[%clk 0:02:13]}  Nc7 {[%clk 0:01:45]} 20. Qxc5 {[%clk 0:02:12]}  Qxc5 {[%clk 0:01:25]} 21. Bxc5 {[%clk 0:02:13]}  Bf6 {[%clk 0:01:22]} 22. Rb1 {[%clk 0:02:03]}  Rac8 {[%clk 0:01:15]} 23. Bxf8 {[%clk 0:02:03]}  Kxf8 {[%clk 0:01:16]} 24. Ne3 {[%clk 0:01:52]}  Be7 {[%clk 0:01:09]} 25. Kh1 {[%clk 0:01:50]}  Bc5 {[%clk 0:01:09]} 26. Ng4 {[%clk 0:01:46]}  Nxg4 {[%clk 0:01:07]} 27. fxg4 {[%clk 0:01:47]}  Nb5 {[%clk 0:01:08]} 28. Bd3 {[%clk 0:01:40]}  Nc3 {[%clk 0:01:07]} 29. Rbe1 {[%clk 0:01:40]}  Bd4 {[%clk 0:01:03]} 30. g5 {[%clk 0:01:32]}  a5 {[%clk 0:00:59]} 31. f6 {[%clk 0:01:30]}  gxf6 {[%clk 0:00:48]} 32. gxf6 {[%clk 0:01:30]}  Rc6 {[%clk 0:00:48]} 33. Bxh7 {[%clk 0:01:25]}  Rxf6 {[%clk 0:00:48]} 34. Rxf6 {[%clk 0:01:24]}  Bxf6 {[%clk 0:00:48]} 35. Bf5 {[%clk 0:01:18]}  Nxa2 {[%clk 0:00:46]} 36. Bd7 {[%clk 0:01:15]}  Be7 {[%clk 0:00:40]} 37. g3 {[%clk 0:01:13]}  Nc3 {[%clk 0:00:39]} 38. h4 {[%clk 0:01:13]}  Nd5 {[%clk 0:00:30]} 39. h5 {[%clk 0:01:11]}  Bf6 {[%clk 0:00:21]} 40. h6 {[%clk 0:01:07]}  Kg8 {[%clk 0:00:15]} 41. Bf5 {[%clk 0:01:04]}  Ne7 {[%clk 0:00:14]} 42. Bd3 {[%clk 0:00:59]}  Kf8 {[%clk 0:00:10]} 43. g4 {[%clk 0:00:58]}  Bg5 {[%clk 0:00:08]} 44. h7 {[%clk 0:00:57]}  Kg7 {[%clk 0:00:09]} 45. Re5 {[%clk 0:00:55]}  Bf6 {[%clk 0:00:09]} 46. Rxa5 {[%clk 0:00:54]}  Bc3 {[%clk 0:00:02]} 47. Ra8 {[%clk 0:00:53]}  Ng6 {[%clk 0:00:03]} 1-0


[Site "https://www.chess.com"]

[Event "Late Titled Tuesday Blitz February 8 2022"]
[White "Beerdsen, Thomas"]
[Black "Pichot, Alan"]
[WhiteFideId "1030108"]
[BlackFideId "110973"]
[WhiteElo "2585"]
[BlackElo "2543"]
[Result "0-1"]
[Round "04"]
[TimeControl "180+1"]
[Date "2022.02.08"]
[WhiteClock "0:01:35"]
[BlackClock "0:00:35"]

1. e4 {[%clk 0:03:00]}  e5 {[%clk 0:02:57]} 2. Nf3 {[%clk 0:03:01]}  Nc6 {[%clk 0:02:58]} 3. d4 {[%clk 0:03:01]}  exd4 {[%clk 0:02:58]} 4. Bc4 {[%clk 0:03:02]}  Nf6 {[%clk 0:02:59]} 5. O-O {[%clk 0:03:03]}  Nxe4 {[%clk 0:02:57]} 6. Nc3 {[%clk 0:03:03]}  Nxc3 {[%clk 0:02:19]} 7. bxc3 {[%clk 0:03:02]}  d5 {[%clk 0:02:19]} 8. Bb5 {[%clk 0:03:02]}  Be7 {[%clk 0:02:17]} 9. cxd4 {[%clk 0:03:01]}  O-O {[%clk 0:02:15]} 10. Bxc6 {[%clk 0:03:00]}  bxc6 {[%clk 0:02:14]} 11. Ne5 {[%clk 0:03:01]}  Qe8 {[%clk 0:02:03]} 12. Re1 {[%clk 0:03:00]}  Be6 {[%clk 0:02:01]} 13. a4 {[%clk 0:02:51]}  Bd6 {[%clk 0:01:53]} 14. Ba3 {[%clk 0:02:48]}  f6 {[%clk 0:01:42]} 15. Bxd6 {[%clk 0:02:40]}  cxd6 {[%clk 0:01:40]} 16. Nxc6 {[%clk 0:02:40]}  Qxc6 {[%clk 0:01:05]} 17. Rxe6 {[%clk 0:02:40]}  Rfe8 {[%clk 0:01:05]} 18. Qg4 {[%clk 0:02:26]}  Kf7 {[%clk 0:00:51]} 19. Qh5+ {[%clk 0:02:16]}  Kg8 {[%clk 0:00:47]} 20. Rae1 {[%clk 0:02:10]}  Rxe6 {[%clk 0:00:42]} 21. Rxe6 {[%clk 0:02:11]}  h6 {[%clk 0:00:38]} 22. Re7 {[%clk 0:01:58]}  Kh8 {[%clk 0:00:34]} 23. Qg6 {[%clk 0:01:41]}  Rg8 {[%clk 0:00:35]} 24. Rxa7 {[%clk 0:01:35]}  Qb6 {[%clk 0:00:35]} 0-1


[Site "https://www.chess.com"]

[Event "Late Titled Tuesday Blitz February 8 2022"]
[White "Bortnyk, Olexandr"]
[Black "Izoria, Zviad"]
[WhiteFideId "14120828"]
[BlackFideId "13601733"]
[WhiteElo "2723"]
[BlackElo "2626"]
[Result "1-0"]
[Round "04"]
[TimeControl "180+1"]
[Date "2022.02.08"]
[WhiteClock "0:01:18"]
[BlackClock "0:00:14"]

1. e4 {[%clk 0:02:54]}  c6 {[%clk 0:03:00]} 2. c4 {[%clk 0:02:48]}  d5 {[%clk 0:03:01]} 3. cxd5 {[%clk 0:02:49]}  cxd5 {[%clk 0:03:02]} 4. exd5 {[%clk 0:02:49]}  Nf6 {[%clk 0:03:02]} 5. Qa4+ {[%clk 0:02:48]}  Nbd7 {[%clk 0:03:00]} 6. Nc3 {[%clk 0:02:47]}  g6 {[%clk 0:02:58]} 7. Bc4 {[%clk 0:02:46]}  Bg7 {[%clk 0:02:59]} 8. d3 {[%clk 0:02:47]}  O-O {[%clk 0:02:55]} 9. Nf3 {[%clk 0:02:43]}  Nb6 {[%clk 0:02:52]} 10. Qb3 {[%clk 0:02:42]}  Bg4 {[%clk 0:02:53]} 11. Ne5 {[%clk 0:02:41]}  Qc7 {[%clk 0:02:52]} 12. f4 {[%clk 0:02:30]}  Qc5 {[%clk 0:02:48]} 13. Qb5 {[%clk 0:02:00]}  Qxb5 {[%clk 0:02:31]} 14. Nxb5 {[%clk 0:01:51]}  Bf5 {[%clk 0:00:51]} 15. d6 {[%clk 0:01:49]}  Nxc4 {[%clk 0:00:51]} 16. dxc4 {[%clk 0:01:44]}  exd6 {[%clk 0:00:22]} 17. Nxd6 {[%clk 0:01:44]}  Be6 {[%clk 0:00:22]} 18. O-O {[%clk 0:01:42]}  b6 {[%clk 0:00:19]} 19. b3 {[%clk 0:01:34]}  Rfd8 {[%clk 0:00:18]} 20. Nb5 {[%clk 0:01:32]}  Ng4 {[%clk 0:00:18]} 21. Bb2 {[%clk 0:01:23]}  Rd2 {[%clk 0:00:17]} 22. Bc3 {[%clk 0:01:21]}  Rc2 {[%clk 0:00:17]} 23. Rfc1 {[%clk 0:01:15]}  Rxc1+ {[%clk 0:00:16]} 24. Rxc1 {[%clk 0:01:16]}  a6 {[%clk 0:00:15]} 25. Nc7 {[%clk 0:01:16]}  Rd8 {[%clk 0:00:15]} 26. Nxe6 {[%clk 0:01:17]}  fxe6 {[%clk 0:00:14]} 27. Nxg4 {[%clk 0:01:17]}  Bxc3 {[%clk 0:00:14]} 28. Rxc3 {[%clk 0:01:18]} 1-0


[Site "https://www.chess.com"]

[Event "Late Titled Tuesday Blitz February 8 2022"]
[White "Brunner, Nicolas"]
[Black "Dias, Joao Batista"]
[WhiteFideId "620246"]
[BlackFideId "2108240"]
[WhiteElo "2372"]
[BlackElo "1898"]
[Result "0-1"]
[Round "04"]
[TimeControl "180+1"]
[Date "2022.02.09"]
[WhiteClock "0:00:17"]
[BlackClock "0:00:28"]

1. d4 {[%clk 0:03:00]}  d5 {[%clk 0:02:48]} 2. c4 {[%clk 0:03:00]}  c6 {[%clk 0:02:47]} 3. Nf3 {[%clk 0:02:59]}  Nf6 {[%clk 0:02:47]} 4. e3 {[%clk 0:02:58]}  g6 {[%clk 0:02:46]} 5. Nbd2 {[%clk 0:02:48]}  Bg7 {[%clk 0:02:46]} 6. Bd3 {[%clk 0:02:45]}  O-O {[%clk 0:02:46]} 7. O-O {[%clk 0:02:44]}  Bg4 {[%clk 0:02:43]} 8. h3 {[%clk 0:02:44]}  Bxf3 {[%clk 0:02:43]} 9. Nxf3 {[%clk 0:02:44]}  Nbd7 {[%clk 0:02:43]} 10. b3 {[%clk 0:02:41]}  Re8 {[%clk 0:02:43]} 11. Bb2 {[%clk 0:02:41]}  Rc8 {[%clk 0:02:41]} 12. Rc1 {[%clk 0:02:38]}  Qa5 {[%clk 0:02:39]} 13. Qc2 {[%clk 0:02:33]}  b5 {[%clk 0:02:27]} 14. cxb5 {[%clk 0:02:30]}  cxb5 {[%clk 0:02:26]} 15. Qxc8 {[%clk 0:02:29]}  Rxc8 {[%clk 0:02:26]} 16. Rxc8+ {[%clk 0:02:30]}  Bf8 {[%clk 0:02:23]} 17. a3 {[%clk 0:02:25]}  Kg7 {[%clk 0:02:19]} 18. b4 {[%clk 0:02:20]}  Qb6 {[%clk 0:02:16]} 19. Ne5 {[%clk 0:02:18]}  e6 {[%clk 0:02:10]} 20. Rfc1 {[%clk 0:02:15]}  Nxe5 {[%clk 0:02:09]} 21. dxe5 {[%clk 0:02:14]}  Ne4 {[%clk 0:02:05]} 22. R1c6 {[%clk 0:02:08]}  Qb7 {[%clk 0:02:01]} 23. R6c7 {[%clk 0:02:04]}  Qb6 {[%clk 0:02:00]} 24. Bd4 {[%clk 0:02:04]}  Qa6 {[%clk 0:01:59]} 25. Ra8 {[%clk 0:01:50]}  Qxa3 {[%clk 0:01:58]} 26. Raxa7 {[%clk 0:01:50]}  Qxd3 {[%clk 0:01:57]} 27. Rxf7+ {[%clk 0:01:48]}  Kh6 {[%clk 0:01:57]} 28. Rxf8 {[%clk 0:01:43]}  Qd1+ {[%clk 0:01:47]} 29. Kh2 {[%clk 0:01:43]}  Nd2 {[%clk 0:01:47]} 30. h4 {[%clk 0:01:24]}  Nf1+ {[%clk 0:01:29]} 31. Kh3 {[%clk 0:01:23]}  Nd2 {[%clk 0:01:11]} 32. Rff7 {[%clk 0:01:10]}  Qh1+ {[%clk 0:01:08]} 33. Kg3 {[%clk 0:01:04]}  Ne4+ {[%clk 0:01:02]} 34. Kf3 {[%clk 0:00:54]}  Nd2+ {[%clk 0:00:51]} 35. Ke2 {[%clk 0:00:51]}  Kh5 {[%clk 0:00:45]} 36. Rxh7+ {[%clk 0:00:46]}  Kg4 {[%clk 0:00:45]} 37. Raf7 {[%clk 0:00:35]}  Qxg2 {[%clk 0:00:38]} 38. Rf4+ {[%clk 0:00:34]}  Kh3 {[%clk 0:00:37]} 39. Kxd2 {[%clk 0:00:34]}  Qf1 {[%clk 0:00:34]} 40. Rg7 {[%clk 0:00:20]}  Qb1 {[%clk 0:00:33]} 41. Ke2 {[%clk 0:00:18]}  Qc2+ {[%clk 0:00:30]} 42. Kf3 {[%clk 0:00:17]}  Qd1# {[%clk 0:00:28]} 0-1


[Site "https://www.chess.com"]

[Event "Late Titled Tuesday Blitz February 8 2022"]
[White "Bugayev, Vladimir"]
[Black "Osiecki, Stanislaw"]
[WhiteFideId "30901480"]
[BlackFideId "1102990"]
[WhiteElo "2349"]
[BlackElo "2127"]
[Result "1-0"]
[Round "04"]
[TimeControl "180+1"]
[Date "2022.02.09"]
[WhiteClock "0:00:38"]
[BlackClock "0:01:22"]

1. e4 {[%clk 0:02:41]}  e6 {[%clk 0:02:59]} 2. d4 {[%clk 0:02:40]}  d5 {[%clk 0:02:58]} 3. Bd3 {[%clk 0:02:41]}  dxe4 {[%clk 0:02:58]} 4. Bxe4 {[%clk 0:02:42]}  Nf6 {[%clk 0:02:58]} 5. Bf3 {[%clk 0:02:43]}  c5 {[%clk 0:02:58]} 6. Ne2 {[%clk 0:02:43]}  Nc6 {[%clk 0:02:59]} 7. Be3 {[%clk 0:02:43]}  Qb6 {[%clk 0:02:59]} 8. Nbc3 {[%clk 0:02:43]}  cxd4 {[%clk 0:02:55]} 9. Nxd4 {[%clk 0:02:41]}  Nxd4 {[%clk 0:02:55]} 10. Qxd4 {[%clk 0:02:34]}  Qxd4 {[%clk 0:02:51]} 11. Bxd4 {[%clk 0:02:35]}  Bb4 {[%clk 0:02:49]} 12. O-O-O {[%clk 0:02:34]}  O-O {[%clk 0:02:40]} 13. Nb5 {[%clk 0:02:34]}  Ba5 {[%clk 0:02:22]} 14. Nd6 {[%clk 0:01:59]}  Bc7 {[%clk 0:02:16]} 15. Nxc8 {[%clk 0:01:58]}  Rfxc8 {[%clk 0:02:13]} 16. Bxb7 {[%clk 0:01:55]}  Bf4+ {[%clk 0:02:09]} 17. Kb1 {[%clk 0:01:54]}  e5 {[%clk 0:02:06]} 18. Bxc8 {[%clk 0:01:44]}  Rxc8 {[%clk 0:02:06]} 19. Bxa7 {[%clk 0:01:42]}  h6 {[%clk 0:02:00]} 20. g3 {[%clk 0:01:42]}  Ra8 {[%clk 0:01:51]} 21. Bb6 {[%clk 0:01:38]}  Ra6 {[%clk 0:01:50]} 22. Bd8 {[%clk 0:01:35]}  Ne4 {[%clk 0:01:46]} 23. gxf4 {[%clk 0:01:26]}  Nxf2 {[%clk 0:01:46]} 24. fxe5 {[%clk 0:01:26]}  Nxh1 {[%clk 0:01:46]} 25. Rxh1 {[%clk 0:01:26]}  Re6 {[%clk 0:01:45]} 26. Bc7 {[%clk 0:01:23]}  Rc6 {[%clk 0:01:45]} 27. Bd6 {[%clk 0:01:22]}  f6 {[%clk 0:01:45]} 28. Re1 {[%clk 0:01:23]}  fxe5 {[%clk 0:01:45]} 29. Bxe5 {[%clk 0:01:21]}  g5 {[%clk 0:01:43]} 30. b4 {[%clk 0:01:17]}  h5 {[%clk 0:01:43]} 31. b5 {[%clk 0:01:15]}  Rc5 {[%clk 0:01:43]} 32. a4 {[%clk 0:01:09]}  Rc4 {[%clk 0:01:42]} 33. c3 {[%clk 0:00:57]}  Rxa4 {[%clk 0:01:42]} 34. b6 {[%clk 0:00:56]}  Ra6 {[%clk 0:01:42]} 35. Bc7 {[%clk 0:00:54]}  Ra5 {[%clk 0:01:39]} 36. c4 {[%clk 0:00:51]}  Ra4 {[%clk 0:01:37]} 37. c5 {[%clk 0:00:49]}  h4 {[%clk 0:01:35]} 38. Re5 {[%clk 0:00:46]}  g4 {[%clk 0:01:34]} 39. Kc2 {[%clk 0:00:42]}  Kf7 {[%clk 0:01:27]} 40. b7 {[%clk 0:00:41]}  Rb4 {[%clk 0:01:26]} 41. Bb6 {[%clk 0:00:41]}  g3 {[%clk 0:01:25]} 42. hxg3 {[%clk 0:00:40]}  hxg3 {[%clk 0:01:25]} 43. Rg5 {[%clk 0:00:39]}  Ra4 {[%clk 0:01:22]} 44. b8=Q {[%clk 0:00:38]} 1-0


[Site "https://www.chess.com"]